bitfinex/quotes_ETHUSD_20250913
["timestamp","ask_amount","ask_price","bid_price","bid_amount"]
[1757793034335,4.71503545,4641.7,4641.6,1e-08]
[1757793034655,12.75996576,4641.7,4641.6,1e-08]
[1757793034828,15.37760158,4641.7,4641.6,1e-08]
[1757793035344,15.37747153,4641.7,4641.6,1e-08]
[1757793035945,2.94652234,4641.4,4641.3,1e-08]
[1757793036147,14.69252233,4641.4,4641.3,1e-08]
[1757793036446,19.68557533,4641.4,4641.3,1e-08]
[1757793036651,20.16247533,4641.4,4641.3,1e-08]
[1757793036846,20.74097092,4641.4,4641.3,1e-08]
[1757793037045,21.08500637,4641.4,4641.3,1e-08]
[1757793037261,2.15512596,4640.1,4640.0,4.4769]
[1757793037447,5.73412596,4640.1,4640.0,4.7744]
[1757793037622,5.73412596,4640.1,4640.0,4.0]
[1757793037940,6.69008229,4640.1,4640.0,4.0]
[1757793038143,6.81044436,4640.1,4640.0,4.0]
[1757793038346,6.69008229,4640.1,4640.0,4.0]
[1757793039534,6.59008229,4640.1,4640.0,4.0]
[1757793043828,6.59008229,4640.1,4638.8,0.08]
[1757793043829,0.792,4639.9,4638.8,0.08]
[1757793044029,2.15568345,4638.9,4638.8,0.5569]
[1757793044341,5.74968345,4638.9,4638.8,0.8544]
[1757793044537,6.30658345,4638.9,4638.8,0.8544]
[1757793044739,6.30658345,4638.9,4638.8,0.3775]
[1757793045260,6.61568345,4638.9,4638.8,0.08]
[1757793045469,6.30658345,4638.9,4638.8,0.08]
[1757793046682,6.30658345,4638.9,4638.8,1.2878]
[1757793046828,3.594,4638.9,4638.8,1.41658]
[1757793047039,5.74968345,4638.9,4638.8,0.8369]
[1757793048060,5.74968345,4638.9,4638.8,0.3697]
[1757793048674,6.39668905,4638.9,4638.8,1.2888]
[1757793051165,6.51499999,4639.1,4638.8,1.2888]
[1757793051367,10.11299999,4639.1,4638.9,0.02155683]
[1757793051567,10.11299999,4639.1,4639.0,1.35103568]
[1757793051774,3.598,4639.2,4639.0,1.35103568]
[1757793052079,3.598,4639.2,4639.1,0.9257]
[1757793052276,3.598,4639.2,4639.1,1.22]
[1757793052856,5.65668981,4640.0,4639.1,0.778]
[1757793053047,2.15546647,4639.4,4639.1,0.778]
[1757793053388,2.15554405,4639.2,4639.1,0.778]
[1757793056874,2.15554405,4639.2,4638.8,0.081]
[1757793056875,2.15568345,4638.9,4638.8,0.081]
[1757793057080,5.76468345,4638.9,4638.8,0.081]
[1757793057375,6.49498345,4638.9,4638.8,0.081]
[1757793057753,7.14202115,4638.9,4638.8,0.081]
[1757793059253,6.41172115,4638.9,4638.8,0.3753]
[1757793059580,5.76468345,4638.9,4638.8,1.301]
[1757793060582,5.76468345,4638.9,4638.8,0.859]
[1757793061545,5.76468345,4638.9,4638.8,0.3753]
[1757793061757,5.76568345,4638.9,4638.8,0.3753]
[1757793062655,5.76568345,4638.9,4638.8,0.859]
[1757793062856,5.76568345,4638.9,4638.8,1.301]
[1757793064083,5.76468345,4638.9,4638.8,0.859]
[1757793065583,5.76468345,4638.9,4638.8,0.081]
[1757793065815,6.08594904,4638.9,4638.8,0.081]
[1757793066868,6.08594904,4638.9,4638.8,0.3753]
[1757793068768,6.08594904,4638.9,4638.8,1.301]
[1757793069874,6.08617718,4638.9,4638.8,1.301]
[1757793072178,6.08617718,4638.9,4638.8,0.081]
[1757793072370,6.38407718,4638.9,4638.8,0.081]
[1757793072999,6.81647718,4638.9,4638.8,0.081]
[1757793075504,6.08117718,4638.9,4638.8,0.8283]
[1757793075703,6.08117718,4638.9,4638.8,1.2695]
[1757793078313,6.08117718,4638.9,4638.8,0.8283]
[1757793079086,6.08117718,4638.9,4638.8,1.2695]
[1757793081396,2.47717718,4638.9,4638.8,1.2695]
[1757793081584,5.75768345,4638.9,4638.8,1.2695]
[1757793081786,6.07917718,4638.9,4638.8,1.2695]
[1757793083021,6.07917718,4638.9,4638.8,0.8283]
[1757793083318,6.07917718,4638.9,4638.8,0.3753]
[1757793084520,6.07817718,4638.9,4638.8,0.3753]
[1757793086487,0.32149373,4638.9,4638.8,3.55217993]
[1757793086705,0.32149373,4639.4,4638.9,2.15568345]
[1757793087026,0.1072,4639.6,4639.3,0.3064]
[1757793087226,0.1072,4639.6,4639.4,0.02155451]
[1757793087544,0.1072,4639.6,4639.5,0.7594]
[1757793087691,2.26260316,4639.6,4639.1,0.453]
[1757793087891,5.86860316,4639.6,4639.2,0.8942]
[1757793088143,2.26260316,4639.6,4639.5,0.3064]
[1757793089013,0.1072,4639.6,4639.5,0.3064]
[1757793089219,2.26255822,4639.6,4639.5,0.3064]
[1757793089913,0.1072,4639.6,4639.5,0.3064]
[1757793091827,2.26255822,4639.6,4639.5,0.3064]
[1757793092226,0.1072,4639.6,4639.5,0.3064]
[1757793093637,0.1072,4639.6,4639.5,0.7594]
[1757793095224,0.1072,4639.6,4639.5,1.2006]
[1757793097335,2.26255822,4639.6,4639.5,1.2006]
[1757793097502,0.1072,4639.6,4639.5,1.2006]
[1757793101244,0.1072,4639.6,4639.5,1.2016]
[1757793102883,2.26255822,4639.6,4639.5,0.7604]
[1757793103148,2.26255822,4639.6,4639.5,0.3074]
[1757793103322,0.1072,4639.6,4639.5,0.3074]
[1757793104412,0.1072,4639.6,4639.5,0.7604]
[1757793105139,0.1072,4639.6,4639.5,1.2016]
[1757793107539,0.1072,4639.6,4639.5,0.7604]
[1757793107763,0.1072,4639.6,4639.5,0.3074]
[1757793108745,0.1072,4639.6,4639.5,0.7968]
[1757793110759,0.1072,4639.6,4639.5,1.2338]
[1757793112158,0.1072,4639.6,4639.5,0.7968]
[1757793113737,0.1072,4639.6,4639.5,1.2338]
[1757793113973,0.1072,4639.6,4639.5,0.7968]
[1757793114175,0.1072,4639.6,4639.5,0.001]
[1757793114176,2.26255822,4639.6,4639.5,0.001]
[1757793114473,0.1072,4639.6,4639.5,0.001]
[1757793115271,0.3088913,4639.6,4639.5,0.001]
[1757793115469,0.42972532,4639.6,4639.5,0.001]
[1757793117055,0.22803402,4639.6,4639.5,0.2999]
[1757793118049,0.42995827,4639.6,4639.5,0.2999]
[1757793118770,2.58531649,4639.6,4639.5,0.2999]
[1757793119770,0.42995827,4639.6,4639.5,0.2999]
[1757793120461,0.22803402,4639.6,4639.5,1.2006]
[1757793120646,0.12083402,4639.7,4639.5,3.47606467]
[1757793120842,3.595,4640.0,4639.6,0.9007]
[1757793121043,3.71583402,4640.0,4639.6,0.9007]
[1757793121255,3.595,4640.0,4639.6,0.9007]
[1757793121965,3.595,4640.0,4639.6,0.437]
[1757793122139,3.595,4640.0,4639.7,0.4637]
[1757793123443,3.91775827,4640.0,4639.7,0.4637]
[1757793123791,3.91775827,4640.0,4639.6,0.437]
[1757793123792,3.91775827,4640.0,4639.5,0.12106]
[1757793123943,0.3144,4639.8,4639.5,0.001]
[1757793124144,4.0146,4639.8,4639.5,0.001]
[1757793124638,4.13543402,4639.8,4639.5,0.001]
[1757793125247,4.0146,4639.8,4639.5,0.001]
[1757793125439,6.16986758,4639.8,4639.5,0.001]
[1757793125794,2.72100882,4639.7,4639.5,0.001]
[1757793126160,0.3144,4639.6,4639.5,0.001]
[1757793127388,7.62930504,4639.6,4639.5,0.001]
[1757793127561,7.95211179,4639.6,4639.5,0.001]
[1757793128185,15.25911178,4639.6,4639.5,0.001]
[1757793128394,16.30543712,4639.6,4639.5,0.001]
[1757793128554,15.72414526,4639.6,4639.5,0.001]
[1757793135901,15.72356094,4639.6,4639.5,0.001]
[1757793136672,15.72247469,4639.6,4639.5,0.001]
[1757793139296,15.60164128,4639.6,4639.5,0.001]
[1757793139831,15.72235802,4639.6,4639.5,0.001]
[1757793143009,15.26185802,4639.6,4639.5,0.001]
[1757793143543,15.26182634,4639.6,4639.5,0.001]
[1757793145528,14.81722634,4639.6,4639.5,0.001]
[1757793145695,13.04637952,4639.6,4639.5,1.236]
[1757793146744,13.04637952,4639.6,4639.5,0.7651]
[1757793146939,13.04637952,4639.6,4639.5,0.2924]
[1757793147545,13.04637952,4639.6,4639.5,0.7651]
[1757793147727,9.45637952,4639.6,4639.5,1.236]
[1757793147898,12.58143229,4639.6,4639.5,1.236]
[1757793148469,10.42607407,4639.6,4639.5,1.236]
[1757793148732,10.10399999,4639.6,4639.5,1.236]
[1757793149432,12.25935821,4639.6,4639.5,1.236]
[1757793149631,12.55885821,4639.6,4639.5,0.001]
[1757793149842,12.25935821,4639.6,4639.5,0.2924]
[1757793150137,12.25935821,4639.6,4639.5,1.236]
[1757793151134,10.10399999,4639.6,4639.5,1.236]
[1757793151427,12.25935821,4639.6,4639.5,1.236]
[1757793151836,12.55885821,4639.6,4639.5,0.001]
[1757793153119,12.25935821,4639.6,4639.5,0.001]
[1757793153734,12.25935821,4639.6,4639.5,0.2924]
[1757793153953,6.51499999,4639.6,4639.5,1.236]
[1757793154119,10.10399999,4639.6,4639.5,1.3596]
[1757793154318,12.25935821,4639.6,4639.5,1.3596]
[1757793154520,10.10399999,4639.6,4639.5,1.236]
[1757793155019,12.25935821,4639.6,4639.5,1.236]
[1757793157336,12.55885821,4639.6,4639.5,0.001]
[1757793157513,12.88125824,4639.6,4639.5,0.001]
[1757793157718,12.67975822,4639.6,4639.5,0.001]
[1757793160019,12.38025822,4639.6,4639.5,0.001]
[1757793160629,12.67975822,4639.6,4639.5,0.001]
[1757793162624,12.55885821,4639.6,4639.5,0.001]
[1757793162823,10.10399999,4639.6,4639.5,0.7651]
[1757793163019,10.10399999,4639.6,4639.5,1.236]
[1757793164144,12.25935821,4639.6,4639.5,1.236]
[1757793165827,10.10399999,4639.6,4639.5,1.236]
[1757793166027,12.25935821,4639.6,4639.5,1.236]
[1757793167616,12.25935821,4639.6,4639.5,0.7651]
[1757793168218,12.38025143,4639.6,4639.5,0.7651]
[1757793169443,12.58175448,4639.6,4639.5,0.7651]
[1757793170254,12.58177268,4639.6,4639.5,0.7651]
[1757793171060,12.25935821,4639.6,4639.5,0.7651]
[1757793171263,12.25935821,4639.6,4639.5,0.2924]
[1757793171821,12.58182258,4639.6,4639.5,0.2924]
[1757793174268,10.42646436,4639.6,4639.5,1.2497]
[1757793174422,0.1072,4639.7,4639.5,1.37182]
[1757793174624,0.1072,4639.7,4639.6,0.9573]
[1757793175047,0.1072,4639.7,4639.6,1.2638]
[1757793175244,0.1072,4639.7,4639.6,1.402492]
[1757793176552,0.42979699,4639.7,4639.6,1.402492]
[1757793177262,0.1072,4639.7,4639.6,1.402492]
[1757793183075,2.26251176,4639.7,4639.6,1.402492]
[1757793183272,0.1072,4639.7,4639.6,1.2638]
[1757793184973,2.26251176,4639.7,4639.6,0.3065]
[1757793185274,2.26251176,4639.7,4639.5,0.001]
[1757793185490,2.15535822,4639.6,4639.5,0.001]
[1757793185699,2.46285822,4639.6,4639.5,0.001]
[1757793185902,3.98391016,4639.6,4639.5,0.001]
[1757793187280,3.69463651,4639.6,4639.5,0.001]
[1757793190783,3.21423651,4639.6,4639.5,0.001]
[1757793194504,2.47803651,4639.6,4639.5,0.001]
[1757793194803,2.78553651,4639.6,4639.5,0.001]
[1757793198211,2.47803651,4639.6,4639.5,0.001]
[1757793199707,2.47803651,4639.6,4639.5,0.2862]
[1757793200783,2.47803651,4639.6,4639.5,0.7494]
[1757793201005,2.47803651,4639.6,4639.5,1.212]
[1757793201515,3.90367829,4639.6,4639.5,1.212]
[1757793201691,0.1072,4639.7,4639.5,1.212]
[1757793201878,0.1072,4639.7,4639.6,0.9258]
[1757793202277,0.1072,4639.7,4639.6,1.211]
[1757793203613,0.1072,4639.7,4639.6,1.3322]
[1757793209522,0.1072,4639.7,4639.5,0.001]
[1757793209523,2.5699119,4639.7,4639.5,0.001]
[1757793209820,2.9978119,4639.7,4639.5,0.001]
[1757793210221,2.15535822,4639.6,4639.5,0.001]
[1757793210428,2.58325822,4639.6,4639.5,0.001]
[1757793210721,2.46275822,4639.6,4639.5,0.001]
[1757793211986,3.09225782,4639.6,4639.5,0.001]
[1757793212849,3.68802136,4639.6,4639.5,0.001]
[1757793213055,5.29267057,4639.6,4639.5,0.001]
[1757793215023,12.59967056,4639.6,4639.5,0.001]
[1757793215347,13.06413989,4639.6,4639.5,0.001]
[1757793215952,13.15040544,4639.6,4639.5,0.001]
[1757793217751,14.44340544,4639.6,4639.5,0.001]
[1757793221434,14.44326472,4639.6,4639.5,0.001]
[1757793228170,13.96846472,4639.6,4639.5,0.001]
[1757793230180,13.96804777,4639.6,4639.5,0.001]
[1757793231581,13.96803671,4639.6,4639.5,0.001]
[1757793233202,11.93973671,4639.6,4639.5,0.7663]
[1757793233511,13.82982195,4639.6,4639.5,1.2194]
[1757793233714,13.82982195,4639.6,4639.5,0.7663]
[1757793234204,13.82982195,4639.6,4639.5,0.2921]
[1757793234721,13.03782195,4639.6,4639.5,1.2194]
[1757793234942,13.03782195,4639.6,4639.5,0.7663]
[1757793236333,13.03782195,4639.6,4639.5,0.2921]
[1757793236735,14.86733122,4639.6,4639.5,0.001]
[1757793236914,15.31073122,4639.6,4639.5,0.001]
[1757793238050,16.60373122,4639.6,4639.5,0.001]
[1757793240422,16.16033122,4639.6,4639.5,0.001]
[1757793240803,16.16061936,4639.6,4639.5,0.001]
[1757793241200,17.81461936,4639.6,4639.5,0.001]
[1757793243046,18.25801936,4639.6,4639.5,0.001]
[1757793243355,18.8379534,4639.6,4639.5,0.001]
[1757793244073,19.1865534,4639.6,4639.5,0.001]
[1757793244247,20.1198534,4639.6,4639.5,0.001]
[1757793244421,19.53991936,4639.6,4639.5,0.001]
[1757793244621,19.62618994,4639.6,4639.5,0.001]
[1757793246746,2.94759052,4639.1,4639.0,0.001]
[1757793246914,7.72691542,4639.1,4639.0,0.001]
[1757793247121,8.48051542,4639.1,4639.0,0.001]
[1757793247937,9.85978898,4639.1,4639.0,0.001]
[1757793248263,8.83510568,4639.1,4639.0,0.001]
[1757793250145,8.52490568,4639.1,4639.0,0.001]
[1757793250350,8.52490568,4639.1,4639.0,0.2921]
[1757793251290,8.52490568,4639.1,4639.0,0.7663]
[1757793251459,8.52490568,4639.1,4639.0,1.2194]
[1757793252808,8.52490568,4639.1,4639.0,0.7663]
[1757793253563,8.52490568,4639.1,4639.0,1.2194]
[1757793253769,6.14514663,4639.1,4639.0,1.2194]
[1757793254459,2.56414663,4639.1,4639.0,1.2194]
[1757793254665,5.82286408,4639.1,4639.0,1.2194]
[1757793254902,6.14514663,4639.1,4639.0,1.2194]
[1757793255562,2.56414663,4639.1,4639.0,1.2194]
[1757793255797,5.82286408,4639.1,4639.0,1.2194]
[1757793255970,6.14514663,4639.1,4639.0,1.2194]
[1757793259275,6.05887307,4639.1,4639.0,1.2194]
[1757793259471,6.0591389,4639.1,4639.0,1.2194]
[1757793260378,3.90354838,4639.1,4639.0,1.2194]
[1757793260686,6.0591389,4639.1,4639.0,1.34944]
[1757793260890,0.32254838,4639.1,4639.0,1.34944]
[1757793261091,3.6882,4639.2,4639.0,1.34944]
[1757793261292,3.6882,4639.2,4639.1,0.9550559]
[1757793261506,3.6882,4639.2,4639.1,1.2609559]
[1757793261809,3.6882,4639.2,4639.1,1.40825549]
[1757793263015,0.1072,4639.2,4639.1,1.40825549]
[1757793263194,3.581,4639.4,4639.1,1.40825549]
[1757793263510,3.581,4639.6,4639.2,0.9335]
[1757793263716,3.581,4639.6,4639.5,0.3059]
[1757793264016,3.581,4639.6,4639.5,1.3654955]
[1757793265178,0.1072,4639.7,4639.5,1.3654955]
[1757793265379,0.1072,4639.7,4639.6,0.51605358]
[1757793265581,0.1072,4639.7,4639.6,0.95505358]
[1757793265907,0.1072,4639.7,4639.6,1.26095358]
[1757793271490,2.26251176,4639.7,4639.6,1.26095358]
[1757793271801,0.1072,4639.7,4639.6,1.26095358]
[1757793272321,2.26251176,4639.7,4639.6,1.2394]
[1757793272714,2.26251176,4639.7,4639.6,0.8004]
[1757793276800,2.26251176,4639.7,4639.6,0.3059]
[1757793282746,2.1553733,4639.6,4639.3,0.4945]
[1757793282918,5.7353733,4639.6,4639.3,0.9335]
[1757793283237,5.7353733,4639.6,4639.4,0.4945]
[1757793283606,3.58,4639.6,4639.5,0.3059]
[1757793285052,3.58,4639.6,4639.5,0.3069]
[1757793285204,3.58,4639.6,4639.5,0.8014]
[1757793285405,3.58,4639.6,4639.5,1.2404]
[1757793286132,3.6892,4639.7,4639.5,1.2704]
[1757793286438,3.6892,4639.7,4639.6,0.9339]
[1757793286599,3.6892,4639.7,4639.6,1.2194]
[1757793287024,0.1092,4639.7,4639.6,1.34144]
[1757793287338,0.002,4639.7,4639.6,1.36299358]
[1757793287563,0.002,4639.7,4639.6,1.34144]
[1757793298704,0.002,4639.7,4639.6,0.87244]
[1757793299342,0.002,4639.7,4639.6,3.48859822]
[1757793299542,0.002,4639.7,4639.6,1.33324]
[1757793301399,0.002,4639.7,4639.6,0.87244]
[1757793302597,0.002,4639.7,4639.6,1.33324]
[1757793303103,0.002,4639.7,4639.6,0.87244]
[1757793303310,0.3185,4639.7,4639.6,0.12204]
[1757793304095,0.002,4639.7,4639.6,0.12204]
[1757793304373,0.3185,4639.7,4639.6,0.12204]
[1757793304807,0.002,4639.7,4639.6,0.12204]
[1757793307986,0.002,4639.7,4639.6,0.41454]
[1757793309112,0.002,4639.7,4639.6,0.90534]
[1757793310686,0.002,4639.7,4639.6,1.36614]
[1757793311014,0.002,4639.7,4639.6,0.90534]
[1757793311216,0.002,4639.7,4639.6,1.36614]
[1757793311618,0.002,4639.7,4639.6,0.90534]
[1757793312400,0.002,4639.7,4639.6,0.41454]
[1757793312615,0.3185,4639.7,4639.5,0.001]
[1757793312952,0.7555,4639.7,4639.5,0.001]
[1757793313170,0.437,4639.6,4639.5,3.001]
[1757793313304,3.39755822,4639.6,4639.5,0.001]
[1757793313642,3.97586455,4639.6,4639.5,0.001]
[1757793313837,4.29860765,4639.6,4639.5,0.001]
[1757793315519,3.80990765,4639.6,4639.5,0.001]
[1757793315720,3.82820765,4639.6,4639.5,0.001]
[1757793316407,4.32110765,4639.6,4639.5,0.001]
[1757793316908,3.82820765,4639.6,4639.5,0.001]
[1757793318215,4.32110765,4639.6,4639.5,0.001]
[1757793321269,4.32310765,4639.6,4639.5,0.001]
[1757793325160,4.40936074,4639.6,4639.5,0.001]
[1757793326884,2.15554959,4639.2,4638.8,0.08076249]
[1757793327037,3.579,4639.1,4638.8,0.08076249]
[1757793327754,3.579,4639.1,4638.8,0.99476249]
[1757793328476,3.579,4639.1,4638.8,0.53726249]
[1757793328779,0.2924,4638.9,4638.8,0.08076249]
[1757793328950,6.02708345,4638.9,4638.8,0.08076249]
[1757793336475,3.579,4638.9,4638.8,0.37346249]
[1757793337380,5.73468345,4638.9,4638.8,0.37346249]
[1757793339861,5.73468345,4638.9,4638.8,0.08076249]
[1757793341676,3.579,4638.9,4638.8,0.37346249]
[1757793342278,5.73468345,4638.9,4638.8,0.37346249]
[1757793343057,3.579,4638.9,4638.8,0.37346249]
[1757793343895,5.73468345,4638.9,4638.8,0.37346249]
[1757793345004,5.73468345,4638.9,4638.8,0.08076249]
[1757793346406,6.03778345,4638.9,4638.8,0.08076249]
[1757793346969,5.73468345,4638.9,4638.8,0.08076249]
[1757793347170,3.579,4638.9,4638.8,0.08076249]
[1757793348010,5.73468345,4638.9,4638.8,0.08076249]
[1757793349788,5.73468345,4638.9,4638.8,0.36726249]
[1757793350304,6.02258345,4638.9,4638.8,0.08076249]
[1757793350480,6.14363795,4638.9,4638.8,0.08076249]
[1757793351708,3.7000545,4638.9,4638.8,0.08076249]
[1757793351880,3.579,4638.9,4638.8,0.08076249]
[1757793352620,3.579,4638.9,4638.8,0.87326249]
[1757793352776,3.579,4638.9,4638.8,1.31606249]
[1757793353704,3.581,4639.0,4638.8,1.31606249]
[1757793353911,3.581,4639.0,4638.9,0.02155683]
[1757793354112,3.581,4639.0,4638.9,1.25685683]
[1757793354516,3.70209012,4639.0,4638.9,1.25685683]
[1757793354812,3.581,4639.0,4638.9,1.25685683]
[1757793362732,0.002,4639.0,4638.9,1.24781876]
[1757793362943,3.58,4639.0,4638.9,1.25685683]
[1757793363148,0.002,4639.0,4638.9,1.36405683]
[1757793363345,0.002,4639.0,4638.9,3.51974028]
[1757793363839,0.002,4639.0,4638.9,1.36405683]
[1757793364042,0.002,4639.0,4638.9,1.72411395]
[1757793365108,0.002,4639.0,4638.9,1.70255712]
[1757793377709,0.002,4639.0,4638.9,3.8797974]
[1757793378183,0.002,4639.0,4638.9,1.72411395]
[1757793378352,0.002,4639.0,4638.9,1.74351395]
[1757793378553,0.002,4639.0,4638.9,3.8991974]
[1757793379264,0.002,4639.0,4638.9,6.8991974]
[1757793379565,0.002,4639.0,4638.9,6.87764057]
[1757793384588,0.002,4639.0,4638.9,10.45464057]
[1757793389304,0.002,4639.0,4638.9,9.99244057]
[1757793391087,0.002,4639.0,4638.9,9.19994057]
[1757793391389,0.2921,4639.0,4638.9,9.19994057]
[1757793391589,0.002,4639.0,4638.9,9.19994057]
[1757793391824,0.002,4639.0,4638.9,9.49414057]
[1757793393028,0.002,4639.0,4638.9,9.86714057]
[1757793393213,0.002,4639.0,4638.9,10.8490304]
[1757793393393,0.002,4639.0,4638.9,11.3035304]
[1757793393593,0.002,4639.0,4638.9,11.01369747]
[1757793397495,0.002,4639.0,4638.9,10.32164057]
[1757793399511,0.002,4639.0,4638.9,10.78384057]
[1757793403032,0.002,4639.0,4638.9,10.89104057]
[1757793405403,0.002,4639.0,4638.9,7.31404057]
[1757793405618,0.002,4639.0,4638.9,10.89004057]
[1757793406523,0.002,4639.0,4638.9,10.42784057]
[1757793406837,0.7253,4639.0,4638.9,2.71738345]
[1757793407039,1.217,4639.0,4638.8,0.08076249]
[1757793407402,0.7253,4639.0,4638.8,0.08076249]
[1757793407604,0.4917,4638.9,4638.8,0.08076249]
[1757793408032,1.215,4638.9,4638.8,0.08076249]
[1757793413337,1.3367,4638.9,4638.8,0.08076249]
[1757793415226,1.215,4638.9,4638.8,0.08076249]
[1757793418651,0.7233,4638.9,4638.8,0.08076249]
[1757793420352,0.002,4639.0,4638.8,3.04264971]
[1757793420685,0.002,4639.0,4638.9,3.576]
[1757793421057,0.312,4639.0,4638.9,3.576]
[1757793428916,0.7396,4639.0,4638.8,0.08076249]
[1757793429219,0.4276,4638.9,4638.8,0.08076249]
[1757793429718,0.7376,4638.9,4638.8,0.08076249]
[1757793429918,2.89328345,4638.9,4638.8,0.08076249]
[1757793430619,3.88419275,4638.9,4638.8,0.08076249]
[1757793434615,7.46019275,4638.9,4638.8,0.08076249]
[1757793434799,7.78265845,4638.9,4638.8,0.08076249]
[1757793435137,7.86892381,4638.9,4638.8,0.08076249]
[1757793444308,7.86870728,4638.9,4638.8,0.08076249]
[1757793445738,7.39360728,4638.9,4638.8,0.08076249]
[1757793448148,7.39359672,4638.9,4638.8,0.08076249]
[1757793448856,6.96599672,4638.9,4638.8,0.08076249]
[1757793450959,3.38999672,4638.9,4638.8,0.08076249]
[1757793451121,6.14018742,4638.9,4638.8,0.82556249]
[1757793453852,6.14018742,4638.9,4638.8,1.26406249]
[1757793454980,6.14018742,4638.9,4638.8,0.82556249]
[1757793455759,5.81794881,4638.9,4638.8,0.37416249]
[1757793456059,6.14035691,4638.9,4638.8,0.37416249]
[1757793456436,6.14035691,4638.9,4638.8,1.26406249]
[1757793458124,2.56435691,4638.9,4638.8,1.26406249]
[1757793458329,6.14035691,4638.9,4638.8,1.26406249]
[1757793460665,2.56435691,4638.9,4638.8,1.26406249]
[1757793460837,6.14035691,4638.9,4638.8,1.26406249]
[1757793463634,6.14035691,4638.9,4638.8,0.82556249]
[1757793464369,6.60553912,4638.9,4638.8,0.82556249]
[1757793464860,6.14075291,4638.9,4638.8,0.82556249]
[1757793466761,6.14075291,4638.9,4638.8,0.37416249]
[1757793469505,6.60594518,4638.9,4638.8,0.37416249]
[1757793469983,6.60594518,4638.9,4638.8,1.27446249]
[1757793470281,6.60594518,4638.9,4638.8,0.83296249]
[1757793470473,6.60594518,4638.9,4638.8,0.37416249]
[1757793470985,6.60594518,4638.9,4638.8,0.08076249]
[1757793473461,6.48504214,4638.9,4638.8,0.08076249]
[1757793473662,6.60619414,4638.9,4638.8,0.08076249]
[1757793481416,0.75335869,4638.9,4638.8,0.38536249]
[1757793481624,3.89906343,4638.9,4638.8,1.28566249]
[1757793487550,3.89906343,4638.9,4638.8,0.84416249]
[1757793487699,4.20656343,4638.9,4638.8,0.08076249]
[1757793487903,4.63496343,4638.9,4638.8,0.08076249]
[1757793488104,6.79064688,4638.9,4638.8,0.08076249]
[1757793488305,4.20656343,4638.9,4638.8,0.08076249]
[1757793489024,4.20644246,4638.9,4638.8,0.08076249]
[1757793489214,3.89894246,4638.9,4638.8,0.08076249]
[1757793490432,6.05462591,4638.9,4638.8,0.08076249]
[1757793490750,3.89883879,4638.9,4638.8,0.08076249]
[1757793492918,3.89883879,4638.9,4638.8,0.38536249]
[1757793493942,3.89883879,4638.9,4638.8,0.84416249]
[1757793494178,3.89883879,4638.9,4638.8,1.28566249]
[1757793494637,0.32283879,4638.9,4638.8,1.28566249]
[1757793494942,0.32283879,4638.9,4638.8,1.41638461]
[1757793495148,3.89783879,4638.9,4638.8,1.41638461]
[1757793495347,3.89783879,4638.9,4638.8,1.28566249]
[1757793495842,3.6960587,4638.9,4638.8,1.28566249]
[1757793499873,3.575,4638.9,4638.8,0.84416249]
[1757793500073,3.575,4638.9,4638.8,1.31796249]
[1757793500230,0.002,4639.0,4638.8,1.31796249]
[1757793500575,0.002,4639.0,4638.9,1.32659044]
[1757793500929,0.002,4639.0,4638.9,1.62549044]
[1757793501631,0.002,4639.0,4638.9,1.2544]
[1757793502764,0.002,4639.0,4638.9,1.27595683]
[1757793503831,0.002,4639.0,4638.9,3.43164028]
[1757793511450,0.002,4639.0,4638.9,1.27595683]
[1757793513675,0.3021,4639.0,4638.9,0.02155683]
[1757793513837,0.7389,4639.0,4638.8,0.18796249]
[1757793514162,0.3021,4639.0,4638.9,0.8917726]
[1757793514666,0.7389,4639.0,4638.9,0.8917726]
[1757793515233,0.3021,4639.0,4638.9,0.8917726]
[1757793516067,0.3021,4639.0,4638.8,0.18796249]
[1757793516068,0.3021,4639.0,4638.8,0.08076249]
[1757793516238,0.7917,4639.0,4638.8,0.08076249]
[1757793516438,0.4368,4638.9,4638.8,0.08076249]
[1757793516862,0.7369,4638.9,4638.8,0.08076249]
[1757793519447,1.2265,4638.9,4638.8,0.08076249]
[1757793520782,0.7369,4638.9,4638.8,0.08076249]
[1757793521088,0.7369,4638.9,4638.4,0.001]
[1757793521089,2.15586935,4638.5,4638.4,0.001]
[1757793521251,5.73586935,4638.5,4638.4,0.001]
[1757793521433,8.07705732,4638.5,4638.4,0.001]
[1757793521638,8.5416298,4638.5,4638.4,0.001]
[1757793521852,2.94791583,4638.4,4638.3,0.001]
[1757793522077,4.73481035,4638.4,4638.3,0.001]
[1757793522290,6.42588283,4638.4,4638.3,0.001]
[1757793525256,5.96131035,4638.4,4638.3,0.001]
[1757793526606,6.16232811,4638.4,4638.3,0.001]
[1757793527098,6.16232388,4638.4,4638.3,0.001]
[1757793530300,6.24861307,4638.4,4638.3,0.001]
[1757793531787,7.54161307,4638.4,4638.3,0.001]
[1757793531989,8.10921307,4638.4,4638.3,0.001]
[1757793532290,8.55791307,4638.4,4638.3,0.001]
[1757793532977,11.04521306,4638.4,4638.3,0.001]
[1757793533174,14.62421306,4638.4,4638.3,0.001]
[1757793533570,15.07291306,4638.4,4638.3,0.001]
[1757793533877,15.52551306,4638.4,4638.3,0.001]
[1757793534681,15.52520287,4638.4,4638.3,0.001]
[1757793540921,16.31720287,4638.4,4638.3,0.001]
[1757793541784,17.61020287,4638.4,4638.3,0.001]
[1757793543414,16.70890287,4638.4,4638.3,0.001]
[1757793543929,17.15760287,4638.4,4638.3,0.001]
[1757793544286,16.95592289,4638.4,4638.3,0.001]
[1757793544486,17.15693337,4638.4,4638.3,0.001]
[1757793544796,16.95623003,4638.4,4638.3,0.001]
[1757793544998,17.15724053,4638.4,4638.3,0.001]
[1757793545199,17.15924053,4638.4,4638.3,0.001]
[1757793546193,17.62267573,4638.4,4638.3,0.001]
[1757793551239,18.20368201,4638.4,4638.3,0.001]